{"text_format":"1","workbook":"xlsx","n_sheets":2,"sheets":["profiles","regions"],"not_rendered":{"charts":0,"images":0,"macros":0,"external_links":0,"defined_names":0,"comments":0,"pivot_tables":0},"unopened":[],"bounds":{"document_bytes":16777216,"sheet_cells":100000,"rows_first":2000,"rows_last":500,"rows_between":2000,"halvings":0,"cell_chars":16384,"cell_head_chars":4096},"cells_cut":0,"cells_raw":0,"read":"whole","date_system":"1900"}

{"sheet":"profiles","index":0,"n_rows":283,"n_cols":18,"rows_kept":283,"cut":false,"hidden":false,"merged":[]}
["ID (не редактировать!)","Фамилия","Имя","Отчество","Пол","О себе","Причина вступления в ЮНАРМИЮ","Вступление в юную армию","Статус","Код Регион","Город","Индекс","Адрес","Образовательное учреждение Название","Образовательное учреждение Класс","Начальник отряда Фамилия","Начальник отряда Имя","Начальник отряда Отчество"]
[null,"Бондарев","Максим","Владимирович","мужской",null,"поступление в ВУЗ","2017-05-05","актив",42,"г. Кемерово",652432,"п.Сосновка-2","МБОУ \"Арсентьевская СОШ\"",7,"Коношевич ","Денис","Иванович"]
[null,"Верхорубова","Ольга","Витальевна","женский",null,"поступление в ВУЗ","2017-05-05","актив",42,"г. Кемерово",652432,"п.Разведчик","МБОУ \"Арсентьевская СОШ\"",10,"Коношевич ","Денис","Иванович"]
[null,"Зубарев","Кирилл","Русланович","мужской",null,"поступление в ВУЗ","2017-05-05","актив",42,"г. Кемерово",652432,"п.Разведчик","МБОУ \"Арсентьевская СОШ\"",9,"Коношевич ","Денис","Иванович"]
[null,"Канин ","Иван","Сергеевич","мужской",null,"поступление в ВУЗ","2017-05-05","актив",42,"г. Кемерово",652432,"п.Разведчик","МБОУ \"Арсентьевская СОШ\"",9,"Коношевич ","Денис","Иванович"]
[null,"Осипов","Константин","Александрович","мужской",null,"поступление в ВУЗ","2017-05-05","актив",42,"г. Кемерово",652432,"п.Разведчик","МБОУ \"Арсентьевская СОШ\"",9,"Коношевич ","Денис","Иванович"]
[null,"Ткач","Денис","Владимирович","мужской",null,"поступление в ВУЗ","2017-05-05","актив",42,"г. Кемерово",652432,"п.Разведчик","МБОУ \"Арсентьевская СОШ\"",9,"Коношевич ","Денис","Иванович"]
[null,"Тиунова","Ксения","Витальевна","женский",null,"поступление в ВУЗ","2017-05-05","актив",42,"г. Кемерово",652432,"п.Разведчик","МБОУ \"Арсентьевская СОШ\"",9,"Коношевич ","Денис","Иванович"]
[null,"Майоров","Иван","Андреевич","мужской",null,"поступление в ВУЗ","2017-05-05","актив",42,"г. Кемерово",652432,"п.Разведчик","МБОУ \"Арсентьевская СОШ\"",8,"Коношевич ","Денис","Иванович"]
[null,"Сучкова","Наталья","Николаена","женский",null,"поступление в ВУЗ","2017-05-05","актив",42,"г. Кемерово",652432,"п.Ровенский","МБОУ \"Арсентьевская СОШ\"",7,"Коношевич ","Денис","Иванович"]
[null,"Лысов","Сергей","Викторович","мужской",null,"поступление в ВУЗ","2018-09-15","актив",42,"г. Кемерово",652432,"п.Разведчик","МБОУ \"Арсентьевская СОШ\"",11,"Коношевич ","Денис","Иванович"]
[null,"Осипова","Маргарита","Владимировна","женский",null,"поступление в ВУЗ","2019-03-16","актив",42,"г. Кемерово",652432,"п. Вотиновка","МБОУ \"Арсентьевская СОШ\"",7,"Коношевич ","Денис","Иванович"]
[null,"Осипов","Артем","Александрович","мужской",null,"поступление в ВУЗ","2019-03-16","актив",42,"г. Кемерово",652432,"п.Разведчик","МБОУ \"Арсентьевская СОШ\"",7,"Коношевич ","Денис","Иванович"]
[null,"Филимонов","Сергей","Алексеевич","мужской",null,"поступление в ВУЗ","2019-03-16","актив",42,"г. Кемерово",652432,"п.Разведчик","МБОУ \"Арсентьевская СОШ\"",7,"Коношевич ","Денис","Иванович"]
[null,"Иванкина","Татьяна","Андреевна","женский",null,"поступление в военный ВУЗ","2018-09-05","актив",42,"г. Кемерово",650510,"с.Березово","МБОУ \"Березовская СОШ\"",10,"Иванкин","Андрей","Николаевич"]
[null,"Исрафилов","Руслан ","Рахманович","мужской",null,"поступление в военный ВУЗ","2018-09-05","актив",42,"г. Кемерово",650510,"с.Березово","МБОУ \"Березовская СОШ\"",9,"Иванкин","Андрей","Николаевич"]
[null,"Гутов","Максим","Александрович","мужской",null,"поступление в военный ВУЗ","2017-05-06","актив",42,"г. Кемерово",650510,"с.Березово","МБОУ \"Березовская СОШ\"",8,"Иванкин","Андрей","Николаевич"]
[null,"Клецов","Михаель","Денисович","мужской",null,"поступление в военный ВУЗ","2017-05-06","актив",42,"г. Кемерово",650510,"с.Березово","МБОУ \"Березовская СОШ\"",8,"Иванкин","Андрей","Николаевич"]
[null,"Пименов","Анатолий","Геннадьевич","мужской",null,"поступление в военный ВУЗ","2017-05-06","актив",42,"г. Кемерово",650510,"с.Березово","МБОУ \"Березовская СОШ\"",8,"Иванкин","Андрей","Николаевич"]
[null,"Сирота","Полина","Эдуардовна","женский",null,"поступление в медицинский ВУЗ","2017-05-06","актив",42,"г. Кемерово",650510,"с.Березово","МБОУ \"Березовская СОШ\"",8,"Иванкин","Андрей","Николаевич"]
[null,"Сабурова","Виктория","Викторовна","женский",null,"поступление в ВУЗ","2017-05-06","актив",42,"г. Кемерово",650510,"с.Березово","МБОУ \"Березовская СОШ\"",8,"Иванкин","Андрей","Николаевич"]
[null,"Темников","Данил","Витальевич","мужской",null,"поступление в военный ВУЗ","2017-05-06","актив",42,"г. Кемерово",650510,"с.Березово","МБОУ \"Березовская СОШ\"",8,"Иванкин","Андрей","Николаевич"]
[null,"Чугунова","Анастасия","Максимовна","женский",null,"поступление в медицинский ВУЗ","2017-05-06","актив",42,"г. Кемерово",650510,"с.Березово","МБОУ \"Березовская СОШ\"",8,"Иванкин","Андрей","Николаевич"]
[null,"Широкова","Валерия ","Игоревна","женский",null,"поступление в ВУЗ","2017-05-06","актив",42,"г. Кемерово",650510,"с.Березово","МБОУ \"Березовская СОШ\"",8,"Иванкин","Андрей","Николаевич"]
[null,"Гапонова","Влада","Александровна","женский",null,"поступление в ВУЗ","2019-02-20","актив",42,"г. Кемерово",650510,"с.Березово","МБОУ \"Березовская СОШ\"",10,"Иванкин","Андрей","Николаевич"]
[null,"Ощепкова","Карина","Ивановна","женский",null,"Поступление в ВУЗ","2019-02-20","актив",42,"г. Кемерово",650510,"с.Березово","МБОУ \"Березовская СОШ\"",10,"Иванкин","Андрей","Николаевич"]
[null,"Буевич","Данил","Дмитриевич","мужской",null,"поступление в ВУЗ","2019-02-20","актив",42,"г.Кемерово",650510,"с.Березово","МБОУ \"Березовская СОШ\"",9,"Иванкин","Андрей","Николаевич"]
[null,"Злакоманова","Александра","Юрьевна","женский",null,"поступление в ВУЗ","2019-03-16","актив",42,"г. Кемерово",650510,"с.Березово","МБОУ \"Березовская СОШ\"",8,"Иванкин","Андрей","Николаевич"]
[null,"Смирнова","Александра","Евгеньевна","женский",null,"поступление в ВУЗ","2019-03-16","актив",42,"г. Кемерово",650510,"с.Березово","МБОУ \"Березовская СОШ\"",8,"Иванкин","Андрей","Николаевич"]
[null,"Шулепова","Анастасия","Антоновна","женский",null,"поступление в ВУЗ","2019-03-16","актив",42,"г. Кемерово",650510,"с.Березово","МБОУ \"Березовская СОШ\"",8,"Иванкин","Андрей","Николаевич"]
[null,"Плутаева","Екатерина","Дмитриевна","женский",null,"поступление в ВУЗ","2017-05-06","актив",42,"г. Кемерово",650527,"Пригородный","МБОУ \"Пригородная ООШ\"",7,"Валяс","Надежда","Геннадьевна"]
[null,"Вунш","Максим","Константинович","мужской",null,"заявление родителей (законных представителей)","2019-03-20","актив",42,"пос.Пригородный",650527,"пос.Пригородный","МБОУ \"Пригородная ООШ\"",8,"Валяс ","Надежда","Геннадьевна"]
[null,"Лымарь","Павел","Александрович","мужской",null,"заявление родителей (законных представителей)","2019-03-20","актив",42,"пос.Пригородный",650527,"по.Пригородный","МБОУ \"Пригородная ООШ\"",8,"Валяс ","Надежда","Геннадьевна"]
[null,"Рудюк","Данил","Игоревич","мужской",null,"заявление родителей (законных представителей)","2019-03-20","актив",42,"пос.Пригородный",650527,"по.Пригородный","МБОУ \"Пригородная ООШ\"",9,"Валяс ","Надежда","Геннадьевна"]
[null,"Самукина","Анжелика","Андреевна","женский",null,"заявление родителей (законных представителей)","2019-03-16","актив",42,"пос.Пригородный",650527,"по.Пригородный","МБОУ \"Пригородная  ООШ",8,"Валяс ","Надежда","Геннадьевна"]
[null,"Порошина","Анастасия","Максимовна","женский",null,"заявление родителей (законных представителей)","2019-03-16","актив",42,"пос.Пригородный",650527,"по.Пригородный","МБОУ \"Пригородная  ООШ",7,"Валяс ","Надежда","Геннадьевна"]
[null,"Вильман","Денис ","Максимович","мужской",null,"заявление родителей (законных представителей)","2019-03-16","актив",42,"пос.Пригородный",650527,"пос.Пригородный","МБОУ \"Пригородная ООШ\"",7,"Валяс ","Надежда","Геннадьевна"]
[null,"Малицковм","Евгений","Юрьевич","мужской",null,"заявление родителей (законных представителей)","2019-03-16","актив",42,"пос.Пригородный",650527,"пос.Пригородный","МБОУ \"Пригородная  ООШ",7,"Валяс ","Надежда","Геннадьевна"]
[null,"Кашин","Иван","Александрович","мужской",null,"заявление родителей (законных представителей)","2019-04-05","актив",42,"пос.Пригородный",650527,"пос.Пригородный","МБОУ \"Пригородная  ООШ",7,"Валяс ","Надежда","Геннадьевна"]
[null,"Детер","Владислав","Сергеевич","мужской",null,"поступление в ВУЗ","2017-05-06","актив",42,"г. Кемерово",650510,"п.Новостройка","МБОУ \"Новостроевская СОШ\"",8,"Айтмагамбетов ","Марат","Тимиржанович"]
[null,"Батрак ","Ярослав ","Никитович","мужской",null,"поступление в ВУЗ","2017-05-06","актив",42,"г. Кемерово",650510,"п.Новостройка","МБОУ \"Новостроевская СОШ\"",8,"Айтмагамбетов ","Марат","Тимиржанович"]
[null,"Оганесян ","Артём ","Норикович","мужской",null,"поступление в ВУЗ","2017-05-06","актив",42,"г. Кемерово",650510,"п.Новостройка","МБОУ \"Новостроевская СОШ\"",8,"Айтмагамбетов ","Марат","Тимиржанович"]
[null,"Гудалина","Дарья","Владимировна","женский",null,"поступление в ВУЗ","2017-05-06","актив",42,"г. Кемерово",650510,"п.Новостройка","МБОУ \"Новостроевская СОШ\"",8,"Айтмагамбетов ","Марат","Тимиржанович"]
[null,"Ананьева","Анна","Алексеевна","женский",null,"поступление в ВУЗ","2017-05-06","актив",42,"г. Кемерово",650510,"п.Новостройка","МБОУ \"Новостроевская СОШ\"",8,"Айтмагамбетов ","Марат","Тимиржанович"]
[null,"Кирьянова","Александра","Евгеньевна","женский",null,"поступление в ВУЗ","2017-05-06","актив",42,"г. Кемерово",650510,"п.Новостройка","МБОУ \"Новостроевская СОШ\"",8,"Айтмагамбетов ","Марат","Тимиржанович"]
[null,"Салебо","Артём ","Сергеевич","мужской",null,"поступление в ВУЗ","2017-05-06","актив",42,"г. Кемерово",650510,"п.Новостройка","МБОУ \"Новостроевская СОШ\"",8,"Айтмагамбетов ","Марат","Тимиржанович"]
[null,"Зверев","Кирилл","Васильевич","мужской",null,"поступление в ВУЗ","2017-05-06","актив",42,"г. Кемерово",650510,"п.Новостройка","МБОУ \"Новостроевская СОШ\"",8,"Айтмагамбетов ","Марат","Тимиржанович"]
[null,"Корнеев","Константин","Сергеевич","мужской",null,"поступление в ВУЗ","2017-05-06","актив",42,"г. Кемерово",650510,"п.Новостройка","МБОУ \"Новостроевская СОШ\"",8,"Айтмагамбетов ","Марат","Тимиржанович"]
[null,"Нижегородов","Кирилл","Владимирович","мужской",null,"поступление в ВУЗ","2017-05-06","актив",42,"г. Кемерово",650510,"п.Новостройка","МБОУ \"Новостроевская СОШ\"",8,"Айтмагамбетов ","Марат","Тимиржанович"]
[null,"Секина","Анастасия"," Игоревна","женский",null,"поступление в ВУЗ","2017-05-06","актив",42,"г. Кемерово",650350,"с.Березово","МБОУ \"Новостроевская СОШ\"",8,"Айтмагамбетов ","Марат","Тимиржанович"]
[null,"Скворцов","Денис","Эдуардович","мужской",null,"поступление в ВУЗ","2017-05-06","актив",42,"г. Кемерово",650510,"п.Новостройка","МБОУ \"Новостроевская СОШ\"",8,"Айтмагамбетов ","Марат","Тимиржанович"]
[null,"Шишов","Даниил","Игоревич","мужской",null,"поступление в ВУЗ","2017-05-06","актив",42,"г. Кемерово",650510,"п.Новостройка","МБОУ \"Новостроевская СОШ\"",8,"Айтмагамбетов ","Марат","Тимиржанович"]
[null,"Евдокимов","Иван","Дмитриевич","мужской",null,"поступление в ВУЗ","2019-04-05","актив",42,"г. Кемерово",650510,"п.Новостройка","МБОУ \"Новостроевская СОШ\"",8,"Айтмагамбетов ","Марат","Темержанович"]
[null,"Кашпирова","Арина","Александровна","женский",null,"поступление в ВУЗ","2017-05-06","актив",42,"г. Кемерово",650066,"п. Звездный","МБОУ \"Звездненская\" СОШ",8,"Сусликов","Николай","Юрьевич"]
[null,"Богданова","Мария","Александровна","женский",null,"поступление в ВУЗ","2017-05-06","актив",42,"г. Кемерово",650066,"п. Звездный","МБОУ \"Звездненская\" СОШ",8,"Сусликов","Николай","Юрьевич"]
[null,"Алексеева","Татьяна ","Николаевна","женский",null,"поступление в ВУЗ","2017-05-06","актив",42,"г. Кемерово",650066,"п. Звездный","МБОУ \"Звездненская\" СОШ",8,"Сусликов","Николай","Юрьевич"]
[null,"Богатырева","Эвелина","Викторовна","женский",null,"поступление в ВУЗ","2017-05-06","актив",42,"г. Кемерово",650066,"п. Звездный","МБОУ \"Звездненская\" СОШ",8,"Сусликов","Николай","Юрьевич"]
[null,"Глюбрехт","Максим","Сергеевич","мужской",null,"поступление в ВУЗ","2017-05-06","актив",42,"г. Кемерово",650066,"п. Звездный","МБОУ \"Звездненская\" СОШ",8,"Сусликов","Николай","Юрьевич"]
[null,"Болдырев","Геральд","Евгеньевич","мужской",null,"поступление в ВУЗ","2017-05-06","актив",42,"г. Кемерово",650066,"п. Звездный","МБОУ \"Звездненская\" СОШ",8,"Сусликов","Николай","Юрьевич"]
[null,"Опейкин","Кирилл","Сергеевич","мужской",null,"поступление в ВУЗ","2017-05-06","актив",42,"г. Кемерово",650066,"п. Звездный","МБОУ \"Звездненская\" СОШ",8,"Сусликов","Николай","Юрьевич"]
[null,"Саковский","Владислав","Романович","мужской",null,"поступление в ВУЗ","2017-05-06","актив",42,"г. Кемерово",650066,"п. Звездный","МБОУ \"Звездненская\" СОШ",8,"Сусликов","Николай","Юрьевич"]
[null,"Максименко","Никита","Евгеньевич","мужской",null,"поступление в ВУЗ","2017-05-06","актив",42,"г. Кемерово",650066,"п. Звездный","МБОУ \"Звездненская\" СОШ",8,"Сусликов","Николай","Юрьевич"]
[null,"Соуков","Матвей","Николаевич","мужской",null,"поступление в ВУЗ","2017-05-06","актив",42,"г. Кемерово",650066,"п. Звездный","МБОУ \"Звездненская\" СОШ",8,"Сусликов","Николай","Юрьевич"]
[null,"Малинин","Матвей","Алексеевич","мужской",null,"поступление в ВУЗ","2017-05-06","актив",42,"г. Кемерово",650066,"п. Звездный","МБОУ \"Звездненская\" СОШ",8,"Сусликов","Николай","Юрьевич"]
[null,"Тарасова","Полина","Владимировна","женский",null,"поступление в ВУЗ","2017-05-06","актив",42,"г. Кемерово",650526,"п. Благодатный","МБОУ \"Звездненская\" СОШ",8,"Сусликов","Николай","Юрьевич"]
[null,"Терехина","Софья","Дмитриевна","женский",null,"поступление в ВУЗ","2017-05-06","актив",42,"г. Кемерово",650066,"п. Звездный","МБОУ \"Звездненская\" СОШ",8,"Сусликов","Николай","Юрьевич"]
[null,"Германов","Юрий","Максимович","мужской",null,"поступление в ВУЗ","2019-02-20","актив",42,"г. Кемерово",650526,"п. Звездный","МБОУ \"Звездненская\" СОШ",10,"Сусликов","Николай","Юрьевич"]
[null,"Ворошин","Семен","Сергеевич","мужской",null,"поступление в ВУЗ","2019-02-20","актив",42,"г. Кемерово",650526,"п. Звездный","МБОУ \"Звездненская\" СОШ",10,"Сусликов","Николай","Юрьевич"]
[null,"Лихачев","Данил","Ильич","мужской",null,"поступление в ВУЗ","2019-02-20","актив ",42,"г. Кемерово",650526,"п. Звездный","МБОУ \"Звездненская\" СОШ",9,"Сусликов","Николай","Юрьевич"]
[null,"Акланова","Дарья","Сергеевна","женский",null,"поступление в ВУЗ","2019-03-16","актив ",42,"г. Кемерово",650526,"п. Звездный","МБОУ \"Звездненская\" СОШ",6,"Сусликов","Николай","Юрьевич"]
[null,"Назаров ","Владислав","Константинович","мужской",null,"поступление в ВУЗ","2019-03-16","актив",42,"г. Кемерово",650526,"п. Благодатный","МБОУ \"Звездненская\" СОШ",6,"Сусликов","Николай","Юрьевич"]
[null,"Кудашова ","Дарья ","Дмитриевна","женский",null,"поступление в ВУЗ","2019-03-16","актив",42,"г. Кемерово",650526,"п. Звездный","МБОУ \"Звзедненская СОШ\"",6,"Сусликов","Николай","Юрьевич"]
[null,"Денисова ","Алена","Сергеевна","женский","отличница","посупление в ВУЗ- ","2017-05-13","актив",42,"г.Кемерово",650503,"п.Ясногорский","МБОУ \"Ясногорская\" СОШ",9,"Баталова","Наталья","Геннадьевна"]
[null,"Кулешов","Илья","Олегович","мужской","спортсмен","поступление в военное училище","2017-05-13","актив",42,"г.Кемерово",650503,"п.Ясногорский","МБОУ \"Ясногорская\" СОШ",9,"Баталова","Наталья","Геннадьевна"]
[null,"Притулло ","Кирилл","Иванович","мужской","спортсмен","поступление в военное училище","2017-05-13","актив",42,"г.Кемерово",650503,"п.Ясногорский","МБОУ \"Ясногорская\" СОШ",9,"Баталова","Наталья","Геннадьевна"]
[null,"Колмогоров ","Данил","Павлович","мужской","спортсмен","поступление в ВУЗ","2017-05-13","актив",42,"г.Кемерово",650503,"п.Ясногорский","МБОУ \"Ясногорская\" СОШ",9,"Баталова","Наталья","Геннадьевна"]
[null,"Алексеенко","Дмитрий","Михайлович","мужской","компьют дизайн","поступленик в ВУЗ","2017-05-13","актив",42,"г.Кемерово",650503,"п.Ясногорский","МБОУ \"Ясногорская\" СОШ",9,"Баталова","Наталья","Геннадьевна"]
[null,"Кирилова","Маргарита","Вячеславовна","женский","рисует","поступление в ВУЗ","2017-05-13","актив",42,"г.Кемерово",650503,"п.Ясногорский","МБОУ \"Ясногорская\" СОШ",9,"Баталова","Наталья","Геннадьевна"]
[null,"Яценко","Александра","Александровна","женский","спортсменка","поступление в ВУЗ","2017-05-13","актив",42,"г.Кемерово",650503,"п.Ясногорский","МБОУ \"Ясногорская\" СОШ",9,"Баталова","Наталья","Геннадьевна"]
[null,"Челпанов","Артём","Евгеньевич","мужской","спортсмен","поступление в военное училище","2017-05-13","актив",42,"г.Кемерово",650503,"п.Ясногорский","МБОУ \"Ясногорская\" СОШ",9,"Баталова","Наталья","Геннадьевна"]
[null,"Челпанов","Данила","Евгеньевич","мужской","спортсмен","военное училище","2017-05-13","актив",42,"г.Кемерово",650503,"п.Ясногорский","МБОУ \"Ясногорская\" СОШ",9,"Баталова","Наталья","Геннадьевна"]
[null,"Федорова","Юлия","Сергеевна","женский","спортсмен","поступление в ВУЗ","2018-05-05","актив",42,"г.Кемерово",650503,"п.Ясногорский","МБОУ \"Ясногорская\" СОШ",7,"Баталова","Наталья","Геннадьевна"]
[null,"Молоков","Михаил","Евгеньевич","мужской","спортсмен","поступление в ВУЗ","2018-05-05","актив",42,"г.Кемерово",650503,"п.Ясногорский","МБОУ \"Ясногорская\" СОШ",6,"Баталова","Наталья","Геннадьевна"]
[null,"Игнатьева","Екатерина","Евгеньевна","женский","спортсмен","поступление в ВУЗ","2018-05-05","актив",42,"г.Кемерово",650503,"п.Ясногорский","МБОУ \"Ясногорская\" СОШ",7,"Баталова","Наталья","Геннадьевна"]
[null,"Леонтьева","Алина","Евгеньевна","женский","спортсмен","поступление в ВУЗ","2018-05-05","актив",42,"г.Кемерово",650503,"п.Ясногорский","МБОУ \"Ясногорская\" СОШ",7,"Баталова","Наталья","Геннадьевна"]
[null,"Боянова ","Анна","Николаевна","женский","спортсмен","поступление в ВУЗ","2018-05-05","актив",42,"г.Кемерово",650503,"п.Ясногорский","МБОУ \"Ясногорская\" СОШ",7,"Баталова","Наталья","Геннадьевна"]
[null,"Челпанов","Дмитрий","Евгеньевич","мужской","спортсмен","поступление в ВУЗ","2018-05-05","актив",42,"г.Кемерово",650503,"п.Ясногорский","МБОУ \"Ясногорская\" СОШ",7,"Баталова","Наталья","Геннадьевна"]
[null,"Гусев","Данил","Евгеньевич","мужской","спортсмен","поступление в военное училище","2018-05-05","актив",42,"г.Кемерово",650503,"п.Ясногорский","МБОУ \"Ясногорская\" СОШ",7,"Баталова","Наталья","Геннадьевна"]
[null,"Глебов","Илья","Юрьевич","мужской","спортсмен","поступление в ВУЗ","2018-05-05","актив",42,"г.Кемерово",650503,"п.Ясногорский","МБОУ \"Ясногорская\" СОШ",7,"Баталова","Наталья","Геннадьевна"]
[null,"Шульга","Никита","Алексеевич","мужской","спортсмен","поступление в военное училище","2018-05-05","актив",42,"г.Кемерово",650503,"п.Ясногорский","МБОУ \"Ясногорская\" СОШ",7,"Баталова","Наталья","Геннадьевна"]
[null,"Иванов","Артём","Викторович","мужской","спортсмен","поступление в ВУЗ","2019-02-20","актив",42,"г.Кемерово",650503,"п.Ясногорский","МБОУ \"Ясногорская СОШ\"",11,"Баталова","Наталья","Геннадьевна"]
[null,"Лебедев","Даниил","Андреевич","мужской","спортсмен","поступление в ВУЗ","2019-02-20","актив",42,"г.Кемерово",650503,"п.Ясногорский","МБОУ \"Ясногорская СОШ\"",11,"Баталова","Наталья","Геннадьевна"]
[null,"Тротнер","Вячеслав","Андреевич","мужской","спортсмен","поступление в ВУЗ","2019-02-20","актив",42,"г.Кемерово",650503,"п.Ясногорский","МБОУ \"Ясногорская СОШ\"",11,"Баталова","Наталья","Геннадьевна"]
[null,"Панов","Антон","Андреевич","мужской","спортсмен","поступление в ВУЗ","2018-05-05","актив",42,"г.Кемерово",650503,"п.Ясногорский","МБОУ \"Ясногорская\" СОШ",7,"Баталова","Наталья","Геннадьевна"]
[null,"Щипцов","Фёдор","Сергеевич","мужской","спортсмен","поступление в ВУЗ","2019-03-16","актив",42,"г.Кемерово",650503,"п.Ясногорский","МБОУ \"Ясногорская СОШ\"",7,"Баталова","Наталья","Геннадьевна"]
[null,"Черняк","Ольга","Михайловна","жениский","спрортсмен","поступление в ВУЗ","2019-03-16","актив",42,"г.Кемерово",650503,"п.Ясногорский","МБОУ \"Ясногорская СОШ\"",6,"Баталова","Наталья","Геннадьевна"]
[null,"Гарин","Даниил","Юрьевич","мужской",null,"поступление в ВУЗ","2017-05-05","актив",42,"г. Кемерово",650503,"п.Ясногорский","МБОУ \"Мазуровская\" СОШ",9,"Черепанова","Светлана","Александровна"]
[null,"Гибельгауз","Кристина","Сергеевна","женский",null,"поступление в ВУЗ","2017-05-05","актив",42,"г. Кемерово",650503,"п.Ясногорский","МБОУ \"Мазуровская\" СОШ",9,"Черепанова","Светлана","Александровна"]
[null,"Кораблин","Денис","Евгеньевич","мужской",null,"поступление в ВУЗ","2017-05-05","актив",42,"г. Кемерово",650503,"п.Ясногорский","МБОУ \"Мазуровская\" СОШ",9,"Черепанова","Светлана","Александровна"]
[null,"Мартынюк","Семён ","Алексеевич","мужской",null,"поступление в ВУЗ","2017-05-05","актив",42,"г. Кемерово",650503,"п.Ясногорский","МБОУ \"Мазуровская\" СОШ",9,"Черепанова","Светлана","Александровна"]
[null,"Масленникова","Анастасия ","Сергеевна","женский",null,"поступление в ВУЗ","2017-05-05","актив",42,"г. Кемерово",650503,"п.Ясногорский","МБОУ \"Мазуровская\" СОШ",9,"Черепанова","Светлана","Александровна"]
[null,"Столмошенко","Денис ","Евгеньевич","мужской",null,"поступление в ВУЗ","2017-05-05","актив",42,"г. Кемерово",650503,"п.Ясногорский","МБОУ \"Мазуровская\" СОШ",9,"Черепанова","Светлана","Александровна"]
[null,"Тимофеев","Никита","Николаевич","мужской",null,"поступление в ВУЗ","2017-05-05","актив",42,"г. Кемерово",650503,"п.Ясногорский","МБОУ \"Мазуровская\" СОШ",9,"Черепанова","Светлана","Александровна"]
[null,"Шарапова","Алина","Вадимовна","женский",null,"поступление в ВУЗ","2017-05-05","актив",42,"г. Кемерово",650503,"п.Ясногорский","МБОУ \"Мазуровская\" СОШ",9,"Черепанова","Светлана","Александровна"]
[null,"Шлетгауэр","Андрей ","Андреевич","мужской",null,"поступление в ВУЗ","2017-05-05","актив",42,"г. Кемерово",650503,"п.Ясногорский","МБОУ \"Мазуровская\" СОШ",9,"Черепанова","Светлана","Александровна"]
[null,"Щербак ","Валерия","Олеговна","женский",null,"поступление в ВУЗ","2017-05-05","актив",42,"г. Кемерово",650503,"п. Ясногорский","МБОУ \"Мазуровская\" СОШ",9,"Черепанова","Светлана","Александровна"]
[null,"Алехно","Никита","Евгеньевич","мужской",null,"поступление в ВУЗ","2018-05-04","актив",42,"г. Кемерово",650503,"п. Ясногорский","МБОУ \"Мазуровская\" СОШ",8,"Черепанова","Светлана","Александровна"]
[null,"Васютин ","Дмитрий","Алексеевич","мужской",null,"поступление в ВУЗ","2018-05-04","актив",42,"г. Кемерово",650503,"п. Ясногорский","МБОУ \"Мазуровская\" СОШ",8,"Черепанова","Светлана","Александровна"]
[null,"Григорян","Арсен","Санасарович","мужской",null,"поступление в ВУЗ","2018-05-04","актив",42,"г. Кемерово",650503,"с. Мазурово","МБОУ \"Мазуровская\" СОШ",8,"Черепанова","Светлана","Александровна"]
[null,"Житков ","Степан","Андреевич","мужской",null,"поступление в ВУЗ","2018-05-04","актив",42,"г. Кемерово",650503,"п. Ясногорский","МБОУ \"Мазуровская\" СОШ",9,"Черепанова","Светлана","Александровна"]
[null,"Кухарь","Денис","Сергеевич","мужской",null,"поступление в ВУЗ","2018-05-04","актив",42,"г. Кемерово",650503,"с. Мазурово","МБОУ \"Мазуровская\" СОШ",8,"Черепанова","Светлана","Александровна"]
[null,"Сысоева","Евгения","Александровна","женский",null,"поступление в ВУЗ","2018-05-04","актив",42,"г. Кемерово",650503,"д. Камышная","МБОУ \"Мазуровская\" СОШ",8,"Черепанова","Светлана","Александровна"]
[null,"Таева","Елизавета","Евгеньевна","женский",null,"поступление в ВУЗ","2018-05-04","актив",42,"г. Кемерово",650503,"с. Мазурово","МБОУ \"Мазуровская\" СОШ",8,"Черепанова","Светлана","Александровна"]
[null,"Южалина ","Екатерина ","Николаевна","женский",null,"поступление в ВУЗ","2018-05-04","актив",42,"г. Кемерово",650503,"д. Камышная","МБОУ \"Мазуровская\" СОШ",8,"Черепанова","Светлана","Александровна"]
[null,"Денисенко","Ирина "," Алексеевна","женский",null,"поступление в ВУЗ","2018-05-04","актив",42,"г. Кемерово",650503,"с. Мазурово","МБОУ \"Мазуровская\" СОШ",9,"Черепанова","Светлана","Александровна"]
[null,"Назырова","Анастасия","Харисовна","женский",null,"поступление в ВУЗ","2018-12-08","актив",42,"г. Кемерово",650503,"с. Мазурово","МБОУ \"Мазуровская\" СОШ",6,"Черепанова","Светлана","Александровна"]
[null,"Карпунькина","Маргарита","Юрьевна","женский",null,"поступление в ВУЗ","2018-12-08","актив",42,"г. Кемерово",650503,"д. Камышная","МБОУ \"Мазуровская\" СОШ",5,"Черепанова","Светлана","Александровна"]
[null,"Барановская","Татьяна","Олеговна","женский",null,"поступление в вуз","2018-12-08","актив",42,"г. Кемерово",650503,"д. Камышная","МБОУ \"Мазуровская\" СОШ",6,"Черепанова","Светлана","Александровна"]
[null,"Черных","Даниил","Львович","мужской",null,"поступление в ВУЗ","2018-05-04","актив",42,"г. Кемерово",650503,"с. Мазурово","МБОУ \"Мазуровская\" СОШ",8,"Черепанова","Светлана","Александровна"]
[null,"Кругова","Валерия","Сергеевна","женский",null,"поступление в ВУЗ","2019-02-20","актив",42,"г. Кемерово",650503,"п. Ясногорский","МБОУ \"Мазуровская\" СОШ",9,"Черепанова","Светлана","Александровна"]
[null,"Ленгерт ","Милена","Михайловна","женский",null,"Заявление родителей (законных представителей)","2019-03-16","актив",42,"г. Кемерово",650503,"п. Ясногорский","МБОУ \"Мазуровская\" СОШ",7,"Черепанова","Светлана","Александровна"]
[null,"Гибельгаус","Анастасия ","Викторовна","женский",null,"Заявление родителей (законных представителей)","2019-03-16","актив",42,"г. Кемерово",650503,"с. Мазурово","МБОУ \"Мазуровская\" СОШ",7,"Черепанова","Светлана","Александровна"]
[null,"Колмогорова","Светлана","Викторовна","женский",null,"Заявление родителей (законных представителей)","2019-03-16","актив",42,"г. Кемерово",650503,"с. Мазурово","МБОУ \"Мазуровская\" СОШ",7,"Черепанова","Светлана","Александровна"]
[null,"Гибельгауз ","Виталий","Сергеевич","мужской",null,"Заявление родителей (законных представителей)","2019-03-16","актив",42,"г. Кемерово",650503,"с. Мазурово","МБОУ \"Мазуровская\" СОШ",7,"Черепанова","Светлана","Александровна"]
[null,"Михайлова","Кристина","Ивановна","женский",null,"поступление в ВУЗ","2017-05-27","актив",42,"г. Кемерово",650513,"д. Мазурово","МБОУ \"Кузбасская\" СОШ",8,"Алешина","Татьяна","Анатольевна"]
[null,"Сергеев","Иван","Дмитриевич","мужской",null,"поступление в ВУЗ","2017-05-28","актив",42,"г. Кемерово",650513,"п. Кузбасский","МБОУ \"Кузбасская\" СОШ",8,"Алешина","Татьяна","Анатольевна"]
[null,"Погорелов","Александр","Владимирович","женский",null,"поступление в ВУЗ","2017-05-29","актив",42,"г. Кемерово",650513,"п. Кузбасский","МБОУ \"Кузбасская\" СОШ",8,"Алешина","Татьяна","Анатольевна"]
[null,"Расчесов","Алексей","Алексеевич","мужской",null,"поступление в ВУЗ","2017-05-30","актив",42,"г. Кемерово",650513,"п. Кузбасский","МБОУ \"Кузбасская\" СОШ",8,"Алешина","Татьяна","Анатольевна"]
[null,"Смирнова","Кристина","Леонидовна ","женский",null,"поступление в ВУЗ","2017-05-31","актив",42,"г. Кемерово",650513,"п. Кузбасский","МБОУ \"Кузбасская\" СОШ",8,"Алешина","Татьяна","Анатольевна"]
[null,"Юрасов","Никита","Алексеевич","мужской",null,"поступление в ВУЗ","2017-06-01","актив",42,"г. Кемерово",650513,"п. Кузбасский","МБОУ \"Кузбасская\" СОШ",8,"Алешина","Татьяна","Анатольевна"]
[null,"Долчанин","Никита","Борисович","мужской",null,"поступление в ВУЗ","2017-06-02","актив",42,"г. Кемерово",650513,"п. Кузбасский","МБОУ \"Кузбасская\" СОШ",8,"Алешина","Татьяна","Анатольевна"]
[null,"Бородкин","Константин","Андреевич","мужской",null,"поступление в ВУЗ","2017-06-03","актив",42,"г. Кемерово",650513,"п. Кузбасский","МБОУ \"Кузбасская\" СОШ",8,"Алешина","Татьяна","Анатольевна"]
[null,"Александрова"," Дарья","Вадимовна","женский",null,"поступление в ВУЗ","2017-06-04","актив",42,"г. Кемерово",650513,"п. Кузбасский","МБОУ \"Кузбасская\" СОШ",8,"Алешина","Татьяна","Анатольевна"]
[null,"Щеглова","Марина","Александровна","женский",null,"поступление в ВУЗ","2017-06-05","актив",42,"г. Кемерово",650513,"п. Кузбасский","МБОУ \"Кузбасская\" СОШ",8,"Алешина","Татьяна","Анатольевна"]
[null,"Алексеев","Георгий","Евгеньевич","мужской",null,"заявление родителей (законных представителей)","2019-02-20","актив",42,"п.Кузбасский",650513,"п.Кузбасский","МБОУ \"Кузбасская\" СОШ",6,"Алешина","Татьяна","Анатольевна"]
[null,"Смирнова","Виктория","Леонидовна","женский",null,"заявление родителей (законных представителей)","2019-02-20","актив",42,"п.Кузбасский",650513,"п.Кузбасский","МБОУ \"Кузбасская\" СОШ",6,"Алешина","Татьяна","Анатольевна"]
[null,"Фоменко","Валерия","Евгеньевна","женский",null,"заявление родителей (законных представителей)","2019-02-20","актив",42,"п.Кузбасский",650513,"п.Кузбасский","МБОУ \"Кузбасская\" СОШ",6,"Алешина","Татьяна","Анатольевна"]
[null,"Михайлова","Кристина","Ивановна","женский",null,"поступление в ВУЗ","2019-03-16","актив",42,"п.Кузбасский",650513,"п.Кузбасский, ул.Кузбасская, 3/2","МБОУ \"Кузбасская\" СОШ",6,"Алешина","Татьяна","Анатольевна"]
[null,"Соболева","Анастасия","Ивановна","женский",null,"поступление в ВУЗ","2019-03-16","актив",42,"п.Кузбасский",650513,"п.Кузбасский,  ул.Свободная, 1/2","МБОУ \"Кузбасская\" СОШ",6,"Алешина","Татьяна","Анатольевна"]
[null,"Щеглова","Марина","Александровна","женский",null,"поступление в ВУЗ","2019-03-16","актив",42,"п.Кузбасский",650513,"п.Кузбасский, ул.Сибирская, 3","МБОУ \"Кузбасская\" СОШ",6,"Алешина","Татьяна","Анатольевна"]
[null,"Загорский","Захар","Сергеевич","мужской",null,"поступление в ВУЗ","2019-04-05","актив",42,"п.Кузбасский",650513,"п.Кузбасский, ул.Алтайская, 18","МБОУ \"Кузбасская\" СОШ",6,"Алешина","Татьяна","Анатольевна"]
[null,"Ельцов","Евгений","Александрович","мужской",null,"поступление в ВУЗ","2018-02-20","актив",42,"г. Кемерово",650512,"д. Береговая, ул. Высокая,18","МБОУ \"Береговская\" СОШ",8,"Полищук","Наталья","Викторовна"]
[null,"Кузьмин ","Евгений","Владиславович","мужской",null,"поступление в ВУЗ","2018-02-20","актив",42,"г. Кемерово",650512,"д. Береговая, ул. Новая, 24","МБОУ \"Береговская\" СОШ",11,"Полищук","Наталья","Викторовна"]
[null,"Голоднов","Евфимий","Данилович","мужской",null,"поступление в ВУЗ","2018-02-20","актив",42,"г. Кемерово",650512,"д. Береговая, ул. Широкая, 33","МБОУ \"Береговская\" СОШ",8,"Полищук","Наталья","Викторовна"]
[null,"Швецов","Дмитрий","Дмитриевич","мужской",null,"поступление в ВУЗ","2018-02-20","актив",42,"г. Кемерово",650512,"д. Береговая, ул. Сиреневая, 27","МБОУ \"Береговская\" СОШ",11,"Полищук","Наталья","Викторовна"]
[null,"Белов ","Сергей","Вадимович","мужской",null,"поступление в ВУЗ","2018-02-20","актив",42,"г. Кемерово",650512,"д. Береговая, ул. Новая, 2","МБОУ \"Береговская\" СОШ",9,"Полищук","Наталья","Викторовна"]
[null,"Кутузов","Дмитрий","Иноревич","мужской",null,"поступление в ВУЗ","2018-02-20","актив",42,"г. Кемерово",650512,"д. Береговая, ул. Новая, 20","МБОУ \"Береговская\" СОШ",11,"Полищук","Наталья","Викторовна"]
[null,"Быков","Виктор","Борисович","мужской",null,"поступление в ВУЗ","2018-02-20","актив",42,"г. Кемерово",650512,"д. Береговая, ул. Центральная, 8-1","МБОУ \"Береговская\" СОШ",8,"Полищук","Наталья","Викторовна"]
[null,"Ащеулов","Кирилл","Валерьевич","мужской",null,"поступление в ВУЗ","2018-02-20","актив",42,"г. Кемерово",650512,"д. Береговая, ул. Садовая, 7","МБОУ \"Береговская\" СОШ",9,"Полищук","Наталья","Викторовна"]
[null,"Мартынов ","Артем","Олегович","мужской",null,"поступление в ВУЗ","2018-02-20","актив",42,"г. Кемерово",650512,"д. Смолино, ул. Центральная, 6-3","МБОУ \"Береговская\" СОШ",9,"Полищук","Наталья","Викторовна"]
[null,"Тузовский ","Аркадий","Андреевич","мужской",null,"поступление в ВУЗ","2018-02-20","актив",42,"г. Кемерово",650512,"д. Береговая, ул. Строительная, 2-11","МБОУ \"Береговская\" СОШ",10,"Полищук","Наталья","Викторовна"]
[null,"Туркина ","Елизавета","Евгеньевна","женский",null,"поступление в ВУЗ","2018-05-05","актив",42,"г. Кемерово",650512,"д. Береговая, ул. Полевая,15","МБОУ \"Береговская\" СОШ",7,"Полищук","Наталья","Викторовна"]
[null,"Бударин ","Николай","Владимирович","мужской",null,"поступление в ВУЗ","2018-05-05","актив",42,"г. Кемерово",650512,"д. Береговая, ул. Мира,6","МБОУ \"Береговская\" СОШ",7,"Полищук","Наталья","Викторовна"]
[null,"Шодиева","Зарина","Махмадовна","женский",null,"поступление в ВУЗ","2018-05-05","актив",42,"г. Кемерово",650512,"д. Смолино, ул. Светлая ,25","МБОУ \"Береговская\" СОШ",7,"Полищук","Наталья","Викторовна"]
[null,"Ямщикова","Марина","Александровна","женский",null,"поступление в ВУЗ","2018-05-05","актив",42,"г. Кемерово",650512,"д. Береговая, ул. Строительная, 4- 14","МБОУ \"Береговская\" СОШ",7,"Полищук","Наталья","Викторовна"]
[null,"Фомичева","Алена","Сергеевна","женский",null,"поступление в ВУЗ","2018-05-05","актив",42,"г. Кемерово",650512,"д. Береговая, ул. Луговая, 23- 2","МБОУ \"Береговская\" СОШ",7,"Полищук","Наталья","Викторовна"]
[null,"Харыбин","Виталий","Андреевич","мужской",null,"поступление в ВУЗ","2018-05-05","актив",42,"г. Кемерово",650512,"д. Береговая,  ул. Центральная,9-1","МБОУ \"Береговская\" СОШ",7,"Полищук","Наталья","Викторовна"]
[null,"Мезенин ","Александр","Максимович","мужской",null,"поступление в ВУЗ","2018-05-05","актив",42,"г. Кемерово",650512,"д. Береговая, ул. Сиреневая, 22","МБОУ \"Береговская\" СОШ",7,"Полищук","Наталья","Викторовна"]
[null,"Милиневский","Алексей","Сергеевич","мужской",null,"поступление в ВУЗ","2018-05-05","актив",42,"г. Кемерово",650512,"д. Береговая, ул. Весенняя, д. 12","МБОУ \"Береговская\" СОШ",7,"Полищук","Наталья","Викторовна"]
[null,"Серб"," Ольга","Федоровна","женский",null,"поступление в ВУЗ","2018-09-15","актив",42,"г. Кемерово",650512,"д. Береговая, ул. Строительная, 1-11","МБОУ \"Береговская\" СОШ",9,"Полищук","Наталья","Викторовна"]
[null,"Баркова ","Татьяна","Евгеньевна","женский",null,"поступление в ВУЗ","2018-09-15","актив",42,"г. Кемерово",650512,"д. Береговая, ул. Школьная , 11-2","МБОУ \"Береговская\" СОШ",9,"Полищук","Наталья","Викторовна"]
[null,"Портнов","Андрей","Александрович","мужской",null,"поступление в ВУЗ","2018-09-15","актив",42,"г. Кемерово",650512,"д. Смолино,ул. Центральная, 26-1","МБОУ \"Береговская\" СОШ",9,"Полищук","Наталья","Викторовна"]
[null,"Швед","Дмитрий ","Алексеевич","мужской",null,"поступление в ВУЗ","2018-09-15","актив",42,"г. Кемерово",650512,"д. Береговая, ул. Строительная, 3- 14","МБОУ \"Береговская\" СОШ",7,"Полищук","Наталья","Викторовна"]
[null,"Евдокимов","Даниил","Евгеньевич","мужской",null,"поступление в ВУЗ","2018-09-15","актив",42,"г. Кемерово",650512,"д. Смолино, ул. Болотная, 43","МБОУ \"Береговская\" СОШ",9,"Полищук","Наталья","Викторовна"]
[null,"Алексеева","Анастасия","Владиславовна","женский",null,"поступление в ВУЗ","2019-02-20","актив",42,"г. Кемерово",650512,"д. Береговая, ул. Дорожная, д.5","МБОУ \"Береговская\" СОШ",9,"Полищук","Наталья","Викторовна"]
[null,"Мартынова ","Елизавета","Андреевна","женский",null,"поступление в ВУЗ","2019-02-20","актив",42,"г. Кемерово",650512,"д. Смолино, ул. Болотная, 43","МБОУ \"Береговская\" СОШ",9,"Полищук","Наталья","Викторовна"]
[null,"Андреев","Владислав","Алексеевич","мужской",null,"поступление в ВУЗ","2019-02-20","актив",42,"г. Кемерово",650512,"д. Береговая, ул. Строительная, 6","МБОУ \"Береговская\" СОШ",9,"Полищук","Наталья","Викторовна"]
[null,"Голоднов ","Михаил","Данилович","мужской",null,"патриот своей страны","2019-03-16","актив",42,"г. Кемерово",650512,"д. Береговая, ул. Широкая, 33","МБОУ \"Береговская\" СОШ",8,"Полищук","Наталья","Викторовна"]
[null,"Смольникова ","Дарья","Александровна","женский",null,"патриот своей страны","2019-03-16","актив",42,"г. Кемерово",650512,"д. Береговая, пер.Больничный, 7","МБОУ \"Береговская\" СОШ",8,"Полищук","Наталья","Викторовна"]
[null,"Правосудова","Светлана","Андреевна","женский",null,"патриот своей страны","2019-03-16","актив",42,"г. Кемерово",650512,"д. Береговая, ул. Строительная, д.1,  кв.14","МБОУ \"Береговская\" СОШ",6,"Полищук","Наталья","Викторовна"]
[null,"Москалев ","Никита ","Вадимович","мужской",null,"поступление в ВУЗ","2019-04-05","актив",42,"г. Кемерово",650512,"д. Береговая, ул. Подгорная, д.11в","МБОУ \"Береговская\" СОШ",10,"Полищук","Наталья","Викторовна"]
[null,"Санина","Маргарита","Сергеевна","женский",null,"патриот своей страны","2017-05-06","актив",42,"г. Кемерово",650516,"д.Мозжуха, ул.Совхозная -9","МБОУ \"Мозжухинская ООШ\"",8,"Шамилов","Сергей","Николаевич"]
[null,"Новичихин ","Илья ","Артурович","мужской",null,"патриот своей страны","2017-05-06","актив",42,"г. Кемерово",650516,"д.Мозжуха, ул.Набережная 1-2","МБОУ \"Мозжухинская ООШ\"",8,"Шамилов","Сергей","Николаевич"]
[null,"Радченко","Виктор","Алексеевич","мужской",null,"патриот своей страны","2017-05-06","актив",42,"г. Кемерово",650516,"д.Мозжуха, ул.Совхозная -9","МБОУ \"Мозжухинская ООШ\"",8,"Шамилов","Сергей","Николаевич"]
[null,"Васильева ","Марина","Андреевна","мужской",null,"патриот своей страны","2017-05-06","актив",42,"г. Кемерово",650516,"д.Мозжуха, ул.Совхозная -9","МБОУ \"Мозжухинская ООШ\"",8,"Шамилов","Сергей","Николаевич"]
[null,"Анищенко","Анастасия","Валерьевна","женский",null,"патриот своей страны","2017-05-06","актив",42,"г. Кемерово",650516,"г.Кемерово. Ул.Улусовская-6","МБОУ \"Мозжухинская ООШ\"",8,"Шамилов","Сергей","Николаевич"]
[null,"Пушкарева","Дарья","Андреевна","женский",null,"патриот своей страны","2017-05-06","актив",42,"г. Кемерово",650516,"д.Мозжуха, ул.Молодежная -15-1","МБОУ \"Мозжухинская ООШ\"",8,"Шамилов","Сергей","Николаевич"]
[null,"Копонова ","Софья","Александровна","женский",null,"патриот своей страны","2017-05-06","актив",42,"г. Кемерово",650516,"д.Мозжуха, ул.Трудовая 6-12","МБОУ \"Мозжухинская ООШ\"",8,"Шамилов","Сергей","Николаевич"]
[null,"Потапов ","Константин","Иванович","мужской",null,"патриот своей страны","2017-05-06","актив",42,"г. Кемерово",650516,"д.Мозжуха, ул.Совхозная -9","МБОУ \"Мозжухинская ООШ\"",8,"Шамилов","Сергей","Николаевич"]
[null,"Сальников ","Денис","Александрович","мужской",null,"патриот своей страны","2018-02-20","актив",42,"г. Кемерово",650516,"г.Кемерово, ул.Мозжухинская -3","МБОУ \"Мозжухинская ООШ\"",6,"Шамилов","Сергей","Николаевич"]
[null,"Колокольцев","Алексей","Дмитриевич","мужской",null,"патриот своей страны","2018-02-20","актив",42,"г. Кемерово",650516,"д.Мозжуха, ул.Лесная 8","МБОУ \"Мозжухинская ООШ\"",6,"Шамилов","Сергей","Николаевич"]
[null,"Жданова ","Ксения","Александровна","женский",null,"патриот своей страны","2017-05-06","актив",42,"г. Кемерово",650516,"д.Мозжуха, ул.Школьная -7","МБОУ \"Мозжухинская ООШ\"",7,"Шамилов","Сергей","Николаевич"]
[null,"Мерзликин","Алексей","Андреевич","мужской",null,"патриот своей страны","2018-02-20","актив",42,"г. Кемерово",650516,"д.Мозжуха, ул.Набережная -6","МБОУ \"Мозжухинская ООШ\"",7,"Шамилов","Сергей","Николаевич"]
[null,"Петришин","Константин","Максимович","мужской",null,"патриот своей страны","2018-02-20","актив",42,"г. Кемерово",650516,"д.Мозжуха, ул.Школьная-11","МБОУ \"Мозжухинская ООШ\"",7,"Шамилов","Сергей","Николаевич"]
[null,"Овчинникова","Лилия","Константиновна","женский",null,"заявление родителей (законных представителей)","2019-02-20","актив",42,"г. Кемерово",650516,"д.Мозжуха, ул.Школьная 7","МБОУ \"Мозжухинская ООШ\"",9,"Шамилов","Сергей","Николаевич"]
[null,"Пугачева","Алина","Юрьевна","женский",null,"заявление родителей (законных представителей)","2019-02-20","актив",42,"г. Кемерово",650516,"д.Мозжуха. Ул.Трудовая 5-5","МБОУ \"Мозжухинская ООШ\"",9,"Шамилов","Сергей","Николаевич"]
[null,"Храпинская","Алиса","Александровна","женский",null,"заявление родителей (законных представителей)","2019-02-20","актив",42,"г. Кемерово",650516,"д.Мозжуха, ул.Трудовая 6-7","МБОУ \"Мозжухинская ООШ\"",7,"Шамилов","Сергей","Николаевич"]
[null,"Беляков ","Семен","Дмитриевич","мужской",null,"заявление родителей (законных представителей)","2019-03-16","актив",42,"г. Кемерово",650516,"г.Кемерово, 7-й пер.Улусовский-11","МБОУ \"Мозжухинская ООШ\"",8,"Шамилов","Сергей","Николаевич"]
[null,"Пекурова","Алена","Александровна","женский",null,"заявление родителей (законных представителей)","2019-03-16","актив",42,"г. Кемерово",650516,"г.Кемерово, пр-т Шахтеров 60а-25","МБОУ \"Мозжухинская ООШ\"",7,"Шамилов","Сергей","Николаевич"]
[null,"Ефремов","Максим","Александрович","мужской",null,"заявление родителей (законных представителей)","2019-04-05","актив",42,"г. Кемерово",650516,"д.Мозжуха, ул.Школьная-4-2","МБОУ \"Мозжухинская ООШ\"",9,"Шамилов","Сергей","Николаевич"]
[null,"Скрицкий","Роман","Юрьевич","мужской",null,"заявление родителей (законных представителей)","2018-12-14","актив",42,"г. Кемерово",652435,"п. Успенка","МКОУ «Успенская ООШ»",2,"Нурмухаметов","Рустам","Маратович"]
[null,"Скрицкая ","Мирослава ","Юрьевна","женский",null,"заявление родителей (законных представителей)","2018-12-14","актив",42,"г. Кемерово",652435,"п. Успенка","МКОУ «Успенская ООШ»",3,"Нурмухаметов","Рустам","Маратович"]
[null,"Косьякова ","Екатерина","Николаевна","женский",null,"заявление родителей (законных представителей)","2018-12-14","актив",42,"г. Кемерово",652435,"п. Успенка","МКОУ «Успенская ООШ»",5,"Нурмухаметов","Рустам","Маратович"]
[null,"Косьякова ","Елена","Николаевна","женский",null,"заявление родителей (законных представителей)","2018-12-14","актив",42,"г. Кемерово",652435,"п. Успенка","МКОУ «Успенская ООШ»",7,"Нурмухаметов","Рустам","Маратович"]
[null,"Иванова ","Софья","Николаевна","женский",null,"заявление родителей (законных представителей)","2018-12-14","актив",42,"г. Кемерово",652435,"п. Успенка","МКОУ «Успенская ООШ»",4,"Нурмухаметов","Рустам","Маратович"]
[null,"Филатова ","Арина","Евгеньевна","женский",null,"заявление родителей (законных представителей)","2018-12-14","актив",42,"г. Кемерово",652435,"п. Успенка","МКОУ «Успенская ООШ»",5,"Нурмухаметов","Рустам","Маратович"]
[null,"Бовдилов ","Андрей","Сергеевич","мужской",null,"заявление родителей (законных представителей)","2018-12-14","актив",42,"г. Кемерово",652435,"п.Успенка","МКОУ «Успенская ООШ»",6,"Нурмухаметов","Рустам","Маратович"]
[null,"Семенов ","Максим","Денисович","мужской",null,"заявление родителей (законных представителей)","2018-12-14","актив",42,"г. Кемерово",652435,"п. Успенка","МКОУ «Успенская ООШ»",6,"Нурмухаметов","Рустам","Маратович"]
[null,"Попов ","Данил","Владимирович","мужской",null,"заявление родителей (законных представителей)","2018-12-14","актив",42,"г. Кемерово",652435,"п. Успенка","МКОУ «Успенская ООШ»",6,"Нурмухаметов","Рустам","Маратович"]
[null,"Попов ","Алексей","Владимирович","мужской",null,"заявление родителей (законных представителей)","2018-12-14","актив",42,"г. Кемерово",652435,"п. Успенка","МКОУ «Успенская ООШ»",8,"Нурмухаметов","Рустам","Маратович"]
[null,"Северин ","Максим","Сергеевич","мужской",null,"заявление родителей (законных представителей)","2018-12-14","актив",42,"г. Кемерово",652435,"п. Успенка","МКОУ «Успенская ООШ»",9,"Нурмухаметов","Рустам","Маратович"]
[null,"Карпов ","Андрей ","Романович","мужской",null,"заявление родителей (законных представителей)","2018-05-05",{"$f":"$I$64","v":"актив"},42,{"$f":"$K$114","v":"г. Кемерово"},650515,"с.Ягуново","МБОУ «Ягуновская СОШ»",8,"Ковалева","Ирина","Юрьевна"]
[null,"Наумкин ","Данил ","Николаевич","мужской",null,"заявление родителей (законных представителей)","2018-05-05","актив",42,"г. Кемерово",650515,"с.Ягуново","МБОУ «Ягуновская СОШ»",8,"Ковалева","Ирина","Юрьевна"]
[null,"Шуманских ","Олеся ","Викторовна","женский",null,"заявление родителей (законных представителей)","2018-05-05","актив",42,"г. Кемерово",650515,"с.Ягуново","МБОУ «Ягуновская СОШ»",8,"Ковалева","Ирина","Юрьевна"]
[null,"Безменов ","Алексей ","Витальевич","мужской",null,"заявление родителей (законных представителей)","2018-05-05","актив",42,"г. Кемерово",650515,"с.Ягуново","МБОУ «Ягуновская СОШ»",9,"Ковалева","Ирина","Юрьевна"]
[null,"Бойкова ","Дарья ","Алексеевна","женский",null,"заявление родителей (законных представителей)","2018-05-05","актив",42,"г. Кемерово",650515,"с.Ягуново","МБОУ «Ягуновская СОШ»",9,"Ковалева","Ирина","Юрьевна"]
[null,"Пдьяровам ","Злата ","Анатольевна","женский",null,"заявление родителей (законных представителей)","2018-05-05","актив",42,"г. Кемерово",650515,"с.Ягуново","МБОУ «Ягуновская СОШ»",9,"Ковалева","Ирина","Юрьевна"]
[null,"Немрец ","Владислав ","Викторович","мужской",null,"заявление родителей (законных представителей)","2018-05-05","актив",42,"г. Кемерово",650515,"с.Ягуново","МБОУ «Ягуновская СОШ»",9,"Ковалева","Ирина","Юрьевна"]
[null,"Подлужный ","Данил ","Константинович","мужской",null,"заявление родителей (законных представителей)","2018-05-05","актив",42,"г. Кемерово",650515,"с.Ягуново","МБОУ «Ягуновская СОШ»",9,"Ковалева","Ирина","Юрьевна"]
[null,"Сергеева ","Полина ","Михайловна","женский",null,"заявление родителей (законных представителей)","2018-05-05","актив",42,"г. Кемерово",650515,"с.Ягуново","МБОУ «Ягуновская СОШ»",9,"Ковалева","Ирина","Юрьевна"]
[null,"Шкурат ","Арсений  ","Васильевич","мужской",null,"заявление родителей (законных представителей)","2018-05-05","актив",42,"г. Кемерово",650515,"с.Ягуново","МБОУ «Ягуновская СОШ»",9,"Ковалева","Ирина","Юрьевна"]
[null,"Панкратова ","Полина ","Юрьевна","женский",null,"заявление родителей (законных представителей)","2018-09-01","актив",42,"г. Кемерово",650515,"с.Ягуново","МБОУ «Ягуновская СОШ»",8,"Ковалева","Ирина","Юрьевна"]
[null,"Панамарева ","Маргарита","Олеговна","женский",null,"заявление родителей (законных представителей)","2019-02-20","актив",42,"г. Кемерово",650515,"с.Ягуново","МБОУ «Ягуновская СОШ»",7,"Ковалева","Ирина","Юрьевна"]
[null,"Лютикова ","Анна ","Александровна","женский",null,"заявление родителей (законных представителей)","2019-02-20","актив",42,"г. Кемерово",650515,"с.Ягуново","МБОУ «Ягуновская СОШ»",8,"Ковалева","Ирина","Юрьевна"]
[null,"Камбалина ","Екатерина"," Витальевна","женский",null,"заявление родителей (законных представителей)","2019-02-20","актив",42,"г. Кемерово",650515,"с.Ягуново","МБОУ «Ягуновская СОШ»",10,"Ковалева","Ирина","Юрьевна"]
[null,"Ярославцева","Анфиса","Борисовна","женский",null,"заявление родителей (законных представителей)","2019-03-16","актив",42,"г. Кемерово",650515,"с.Ягуново","МБОУ «Ягуновская СОШ»",7,"Ковалева","Ирина","Юрьевна"]
[null,"Журбин ","Захар","Сергеевич","мужской",null,"заявление родителей (законных представителей)","2019-03-16","актив",42,"г. Кемерово",650515,"с.Ягуново","МБОУ «Ягуновская СОШ»",7,"Ковалева","Ирина","Юрьевна"]
[null,"Ананьев ","Павел","Андреевич","мужской",null,"заявление родителей (законных представителей)","2019-03-16","актив",42,"г. Кемерово",650515,"с.Ягуново","МБОУ «Ягуновская СОШ»",8,"Ковалева","Ирина","Юрьевна"]
[null,"Гончар ","Денис","Анатольевич","мужской",null,"заявление родителей (законных представителей)","2019-03-16","актив",42,"г. Кемерово",650515,"с.Ягуново","МБОУ «Ягуновская СОШ»",7,"Ковалева","Ирина","Юрьевна"]
[null,"Массалов  ","Вячеслав","Дмитриевич","мужской",null,"заявление родителей (законных представителей)","2019-04-05","актив",42,"г. Кемерово",650515,"с.Ягуново","МБОУ «Ягуновская СОШ»",7,"Ковалева","Ирина","Юрьевна"]
[null,"Николайчук ","Екатерина","Александровна","женский",null,"заявление родителей (законных представителей)","2018-05-05","актив",42,"г. Кемерово",650505,"п.Щегловский","МБОУ\" Барановская СОШ",7,"Лукащук","Антон","Николаевич"]
[null,"Кравчук","Софья ","Ивановна","женский",null,"заявление родителей (законных представителей)","2018-05-05","актив",42,"г. Кемерово",650505,"п.Щегловский","МБОУ\" Барановская СОШ",7,"Лукащук","Антон","Николаевич"]
[null,"Кондриева","Ксения","Владимировна","женский",null,"заявление родителей (законных представителей)","2018-05-05","актив",42,"г. Кемерово",650505,"п.Щегловский","МБОУ\" Барановская СОШ",7,"Лукащук","Антон","Николаевич"]
[null,"Виноградов","Артем ","Альбертович","мужской",null,"заявление родителей (законных представителей)","2018-05-05","актив",42,"г. Кемерово",650505,"п.Щегловский","МБОУ\" Барановская СОШ",7,"Лукащук","Антон","Николаевич"]
[null,"Аркадьева ","Екатерина","Евгеньевна","женский",null,"заявление родителей (законных представителей)","2018-05-05","актив",42,"г. Кемерово",650537,"с. Барановка","МБОУ\" Барановская СОШ",7,"Лукащук","Антон","Николаевич"]
[null,"Гаврилов ","Сергей","Алексеевич","мужской",null,"заявление родителей (законных представителей)","2018-05-05","актив",42,"г. Кемерово",650505,"п.Щегловский","МБОУ\" Барановская СОШ",7,"Лукащук","Антон","Николаевич"]
[null,"Ветров","Дмитрий","Алексеевич","мужской",null,"заявление родителей (законных представителей)","2018-05-05","актив",42,"г. Кемерово",650505,"п.Щегловский","МБОУ\" Барановская СОШ",7,"Лукащук","Антон","Николаевич"]
[null,"Щербинин","Иван","Александрович","мужской",null,"заявление родителей (законных представителей)","2018-05-05","актив",42,"г. Кемерово",650505,"п.Щегловский","МБОУ\" Барановская СОШ",7,"Лукащук","Антон","Николаевич"]
[null,"Попов ","Виктор","Андреевич","мужской",null,"заявление родителей (законных представителей)","2018-05-05","актив",42,"г. Кемерово",650505,"п.Щегловский","МБОУ\" Барановская СОШ",7,"Лукащук","Антон","Николаевич"]
[null,"Носков","Максим","Сергеевич","мужской",null,"заявление родителей (законных представителей)","2018-05-05","актив",42,"г. Кемерово",650505,"п.Щегловский","МБОУ\" Барановская СОШ",7,"Лукащук","Антон","Николаевич"]
[null,"Фатеева","Анна","Эдуардовна","женский",null,"заявление родителей (законных представителей)","2018-09-15","актив",42,"г. Кемерово",650505,"п.Щегловский","МБОУ\" Барановская СОШ",6,"Лукащук","Антон","Николаевич"]
[null,"Смирнова","Полина","Михайловна","женский",null,"заявление родителей (законных представителей)","2018-09-15","актив",42,"г. Кемерово",650505,"п.Щегловский","МБОУ\" Барановская СОШ",4,"Лукащук","Антон","Николаевич"]
[null,"Потехин","Вадим","Дмитриевич","мужской",null,"заявление родителей (законных представителей)","2018-09-15","актив",42,"г. Кемерово",650505,"п.Щегловский","МБОУ\" Барановская СОШ",4,"Лукащук","Антон","Николаевич"]
[null,"Вахрамеева","Екатерина ","Денисовна","женский",null,"заявление родителей (законных представителей)","2019-02-20","актив",42,"г. Кемерово",650537,"с. Барановка","МБОУ\" Барановская СОШ",6,"Лукащук","Антон","Николаевич"]
[null,"Шкердин","Владимир","Алексеевич","мужской",null,"заявление родителей (законных представителей)","2019-02-20","актив",42,"г. Кемерово",650505,"д. Подъяково","МБОУ\" Барановская СОШ",6,"Лукащук","Антон","Николаевич"]
[null,"Бельчикова","Алина","Александровна","женский",null,"заявление родителей (законных представителей)","2019-02-20","актив",42,"г. Кемерово",650537,"с. Барановка","МБОУ\" Барановская СОШ",6,"Лукащук","Антон","Николаевич"]
[null,"Авдонин","Сергей","Романович","мужской",null,"заявление родителей (законных представителей)","2019-04-05","актив",42,"г. Кемерово",650505,"п. Щегловский, ул. 40 лет Победы, 10-2","МБОУ\" Барановская СОШ",7,"Лукащук","Антон","Николаевич"]
[null,"Винняков","Александр","Александрович","мужской",null,"заявление родителей (законных представителей)","23.11.2017","актив",42,"г.Кемерово",650515,"п.Металлплощадка","МБОУ \"Металлплощадская СОШ\"",9,"Вишняков","Александр","Александрович"]
[null,"Курбонов","Шохрух","Нимбович","мужской",null,"заявление родителей (законных представителей)","23.11.2017","актив",42,"г.кемерово",650515,"п.Металлплощадка","МБОУ \"Металлплощадская СОШ\"",9,"Вишняков","Александр","Александрович"]
[null,"Хусейнов","Махмадазим","Махмадсабурович","мужской",null,"заявление родителей (законных представителей)","23.11.2017","актив",42,"г.Кемерово",650515,"п.Металлплощадка","МБОУ \"Металлплощадская СОШ\"",9,"Вишняков","Александр","Александрович"]
[null,"Смирнова","Владислав","Викторович","Мужской",null,"заявление родителей (законных представителей)","23.11.2017","актив",42,"г.Кемерово",650515,"п.Металлплощадка","МБОУ \"Металлплощадская СОШ\"",8,"Вишняков","Александр","Александрович"]
[null,"Зокиров","Ромиз","Зиёваддинович","мужской",null,"заявление родителей (законных представителей)","23.11.2017","актив",42,"г.кемерово",650515,"п.Металлплощадка","МБОУ \"Металлплощадская СОШ\"",8,"Вишняков","Александр","Александрович"]
[null,"Щепеткова","Светлана","Александровна","женский",null,"заявление родителей (законных представителей)","23.11.2017","актив",42,"г.Кемерово",650515,"п.Металлплощадка","МБОУ \"Металлплощадская СОШ\"",8,"Вишняков","Александр","Александрович"]
[null,"Скорлыгина","Оксана","Станиславовна","женский",null,"заявление родителей (законных представителей)","23.11.2017","актив",42,"г.Кемерово",650515,"п.Металлплощадка","МБОУ \"Металлплощадская СОШ\"",7,"Вишняков","Александр","Александрович"]
[null,"Хусенов","Ромиз","Мухмадсабурович","мужской",null,"заявление родителей (законных представителей)","23.11.2017","актив",42,"г.Кемерово",650515,"п.Металлплощадка","МБОУ \"Металлплощадская СОШ\"",7,"Вишняков","Александр","Александрович"]
[null,"Чурилов","Илья ","Витальевич","мужской",null,"заявление родителей (законных представителей)","23.11.2017","актив",42,"г.Кемероо",650515,"п.Металлплощадка","МБОУ \"Металлплощадская СОШ\"",7,"Вишняков","Александр","Александрович"]
[null,"Селицкий","Вадим","Вячеславович","мужской",null,"заявление родителей (законных представителей)","16.09.2018","актив",42,"г.Кемерово",650515,"п.Металлплощадка","МБОУ \"Металлплощадская СОШ\"",7,"Вишняков","Александр","Александрович"]
[null,"Тяпкина","Виктория","Александровна","женский",null,"заявление родителей (законных представителей)","16.09.2018","актив",42,"г.Кемерово",650515,"п.Металлплощадка","МБОУ \"Металлплощадская СОШ\"",6,"Вишняков","Александр","Александрович"]
[null,"Абушахманов","Шамиль","Ринатович","мужской",null,"заявление родителей (законных представителей)","20.11.2017","актив",42,"г.Кемерово",650515,"п.Металлплощадка","МБОУ \"Металлплощадская СОШ\"",11,"Вишняков","Александр","Александрович"]
[null,"Курочкин","Андрей","Сергеевич","мужской",null,"заявление родителей (законных представителей)","20.11.2017","актив",42,"г.Кемерово",650515,"п.Металлплощадка","МБОУ \"Металлплощадская СОШ\"",11,"Вишняков","Александр","Александрович"]
[null,"Калинин","Никита","Сергеевич","мужской",null,"заявление родителей (законных представителей)","20.11.2017","актив",42,"г.Кемерово",650515,"п.Металлплощадка","МБОУ \"Металлплощадская СОШ\"",11,"Вишняков","Александр","Александрович"]
[null,"Хакимова","Арина","Муссаевна","женский",null,"заявление родителей (законных представителей)","20.11.2017","актив",42,"г.Кемерово",650515,"п.Металлплощадка","МБОУ \"Металлплощадская СОШ\"",8,"Вишняков","Александр","Александрович"]
[null,"Филюшкин","Андрей","Павлович","мужской",null,"заявление родителей (законных представителей)","2019-02-20","актив",42,"г.Кемерово",650517,"п. Металлплощадка","МБОУ \"Металлплощадская СОШ\"",7,"Вишняков","Александр","Александрович"]
[null,"Белянко","Дана","Владиславовна","женский",null,"заявление родителей (законных представителей)","2019-02-20","актив",42,"г.Кемероо",650517,"п. Металлплощадка","МБОУ \"Металлплощадская СОШ\"",7,"Вишняков","Александр","Александрович"]
[null,"Заборская","Алена","Владимировна","женский",null,"заявление родителей (законных представителей)","2019-02-20","актив",42,"г.Кемерово",650517,"п. Металлплощадка","МБОУ \"Металлплощадская СОШ\"",7,"Вишняков","Александр","Александрович"]
[null,"Устинов ","Устин","Анатольевич","мужской",null,"заявление родителей (законных представителей)","2019-03-16","актив",42,"п. Металлплощадка",650517,"п. Металлплощадка","МБОУ Металлплощадская СОШ\"\"",7,"Вишняков","Александр","Александрович"]
[null,"Жариков ","Игорь","Андреевич","муэской",null,"заявление родителей (законных представителей)","2019-03-16","актив",42,"п. Металлплощадка",650517,"п. Металлплощадка","МБОУ Металлплощадская СОШ\"\"",8,"Вишняков","Александр","Александрович"]
[null,"Солодкая","Татьяна","Николаевна","женский",null,"заявление родителей (законных представителей)","2019-03-16","актив",42,"п. Металлплощадка",650517,"п. Металлплощадка","МБОУ Металлплощадская СОШ\"\"",5,"Вишняков","Александр","Александрович"]
[null,"Брыкова","Анна","Евгеньевна","женский",null,"заявление родителей (законных представителей)","2019-03-16","актив",42,"п. Металлплощадка",650517,"п. Металлплощадка","МБОУ Металлплощадская СОШ\"\"",5,"Вишняков","Александр","Александрович"]
[null,"Рубан","Александр","Марзунбекович","мужской",null,"заявление родителей (законных представителей)","2019-04-05","актив",42,"п. Металлплощадка",650517,"п. Металлплощадка","МБОУ Металлплощадская СОШ\"\"",7,"Вишняков","Александр","Александрович"]
[null,"Пранк ","Анастасия ","Анатольевна","женский",null,"заявление родителей (законных представителей)","2017-09-01","актив",42,"г.Кемерово",650523,"с.Елыкаево","МБОУ \"Елыкаевская СОШ\"",11,"Абдрашитова","Вилена","Александровна"]
[null,"Поляков ","Матвей","Алексеевич","мужской",null,"заявление родителей (законных представителей)","2017-09-01","актив",42,"г.Кемерово",650523,"с.Елыкаево","МБОУ \"Елыкаевская СОШ\"",9,"Абдрашитова","Вилена","Александровна"]
[null,"Киселев ","Александр","Александрович","мужской",null,"заявление родителей (законных представителей)","2017-09-01","актив",42,"г.Кемероо",650523,"с.Елыкаево","МБОУ \"Елыкаевская СОШ\"",9,"Абдрашитова","Вилена","Александровна"]
[null,"Савгачева ","Дарья","Павловна","женский",null,"заявление родителей (законных представителей)","2017-09-01","актив",42,"г.Кемерово",650523,"с.Елыкаево","МБОУ \"Елыкаевская СОШ\"",8,"Абдрашитова","Вилена","Александровна"]
[null,"Кленяев","Степан","Викторович","мужской",null,"заявление родителей (законных представителей)","2017-09-01","актив",42,"г.Кемерово",650523,"с.Елыкаево","МБОУ \"Елыкаевская СОШ\"",9,"Абдрашитова","Вилена","Александровна"]
[null,"Остроумов ","Степан","Викторович","мужской",null,"заявление родителей (законных представителей)","2019-02-20","актив",42,"г.Кемероо",650523,"с.Елыкаево","МБОУ \"Елыкаевская СОШ\"",8,"Абдрашитова","Вилена","Александровна"]
[null,"Бажин","Антон","Викторович","мужской",null,"заявление родителей (законных представителей)","2019-02-20","актив",42,"г.Кемероо",650523,"с.Елыкаево","МБОУ \"Елыкаевская СОШ\"",9,"Абдрашитова","Вилена","Александровна"]
[null,"Пенькова","Алесандра","Олеговна","женский",null,"заявление родителей (законных представителей)","2019-02-20","актив",42,"г.Кемерово",650523,"с.Елыкаево","МБОУ \"Елыкаевская СОШ\"",9,"Абдрашитова","Вилена","Александровна"]
[null,"Цыганцева","Анастасия","Андреевна","женский",null,"заявление родителей (законных представителей)","2019-02-20","актив",42,"г.Кемерово",650523,"с.Елыкаево","МБОУ \"Елыкаевская СОШ\"",11,"Абдрашитова","Вилена","Александровна"]
[null,"Игнатенко","Роман","Владимирович","мужской",null,"заявление родителей (законных представителей)","2019-04-05","актив",42,"с.Елыкаево",650523,"с.Елыкаево","МБОУ \"Елыкаевская СОШ\"",7,"Абдрашитова","Вилена","Александровна"]
[null,"Урусов","Владимир","Сергеевич","мужской",null,"заявление родителей (законных представителей)","2019-04-05","актив",42,"с.Елыкаево",650523,"с.Елыкаево","МБОУ \"Елыкаевская СОШ\"",7,"Абдрашитова","Вилена","Александровна"]
[null,"Егорова ","Анастасия ","Дмитриевна","женский",null,"заявление родителей (законных представителей)","2019-02-20","актив",42,"г.Кемерово",650504,"с. Верхотомское","МБОУ \"Верхотомская ООШ\"",9,"Барашкин","Александр","Владимирович"]
[null,"Онина ","Ольга","Денисовна","женский",null,"заявление родителей (законных представителей)","2019-02-20","актив",42,"г.Кемероо",650504,"с. Верхотомское","МБОУ \"Верхотомская ООШ\"",8,"Барашкин","Александр","Владимирович"]
[null,"Абдыкадырова","Элиза","Ибрахимжановна","женский",null,"заявление родителей (законных представителей)","2019-02-20","актив",42,"г.Кемерово",650504,"с. Верхотомское","МБОУ \"Верхотомская ООШ\"",8,"Барашкин","Александр","Владимирович"]
[null,"Охрименко ","Кристина ","Павловна","женский",null,"заявление родителей (законных представителей)","2019-03-16","актив",42,"г. Кемерово",650504,"с. Верхотомское","МБОУ «Верхотомская ООШ»",6,"Барашкин","Александр ","Владимирович"]
[null,"Ткачева","Тамара","Владимировна","женский",null,"заявление родителей (законных представителей)","2019-03-16","актив",42,"г. Кемерово",650504,"с. Верхотомское","МБОУ «Верхотомская ООШ»",7,"Барашкин","Александр ","Владимирович"]
[null,"Гуляев ","Виктор","Валерьевич","мужской",null,"заявление родителей (законных представителей)","2019-02-20","актив",42,"г. Кемерово",650524,"д. Старочервово","МБОУ \"Старочервовская ООШ\"",6,"Судницына","Анна","Александровна"]
[null,"Иванова ","Алиса","Александровна","женский",null,"заявление родителей (законных представителей)","2019-02-20","актив",42,"г. Кемерово",650524,"д. Старочервово","МБОУ \"Старочервовская ООШ\"",5,"Судницына","Анна","Александровна"]
[null,"Серебренников","Дмитрий","Сергеевич","мужской",null,"заявление родителей (законных представителей)","2019-02-20","актив",42,"г. Кемерово",650524,"д. Старочервово","МБОУ \"Старочервовская ООШ\"",6,"Судницына","Анна","Александровна"]
[null,"Синичкина","Юлия","Игоревна","женский",null,"заявление родителей (законных представителей)","2019-02-20","актив",42,"г. Кемерово",650524,"д. Старочервово","МБОУ \"Старочервовская ООШ\"",5,"Судницына","Анна","Алекмандровна"]
[null,"Бородич","Дмитрий","Евгеньевич","мужской",null,"заявление родителей (законных представителей)","2019-03-16","актив",42,"г. Кемерово",650524,"д. Старочервово","МБОУ \"Старочервовская ООШ\"",7,"Судницына","Анна","Александровна"]
[null,"Гуляев ","Максим","Валерьевич","мужской",null,"заявление родителей (законных представителей)","2019-03-16","актив",42,"г. Кемерово",650524,"д. Старочервово","МБОУ \"Старочервовская ООШ\"",8,"Судницына","Анна","Александровна"]
[null,"Овсянникова","Маргарита","Павловна","женский",null,"заявление родителей (законных представителей)","1603.2019","актив",42,"г. Кемерово",650524,"д. Старочервово","МБОУ \"Старочервовская ООШ\"",8,"Судницына","Анна","Александровна"]

{"sheet":"regions","index":1,"n_rows":86,"n_cols":3,"rows_kept":86,"cut":false,"hidden":false,"merged":[]}
["Код региона","Имя региона","O(I) Rh- (Первая отрицательная)"]
["46","Курская область","O(I) Rh+ (Первая положительная)"]
["47","Ленинградская область","A(II) Rh- (Вторая отрицательная)"]
["48","Липецкая область","A(II) Rh+ (Вторая положительная)"]
["49","Магаданская область","B(III) Rh- (Третья отрицательная)"]
["50","Московская область","B(III) Rh+ (Третья положительная)"]
["51","Мурманская область","AB(IV) Rh- (Четвертая отрицательная)"]
["52","Нижегородская область","AB(IV) Rh+ (Четвертая положительная)"]
["53","Новгородская область"]
["54","Новосибирская область"]
["55","Омская область"]
["56","Оренбургская область"]
["57","Орловская область"]
["58","Пензенская область"]
["60","Псковская область"]
["61","Ростовская область"]
["62","Рязанская область"]
["65","Сахалинская область"]
["63","Самарская область"]
["64","Саратовская область"]
["67","Смоленская область"]
["66","Свердловская область"]
["68","Тамбовская область"]
["70","Томская область"]
["69","Тверская область"]
["71","Тульская область"]
["72","Тюменская область"]
["73","Ульяновская область"]
["33","Владимирская область"]
["34","Волгоградская область"]
["35","Вологодская область"]
["36","Воронежская область"]
["76","Ярославская область"]
["79","Еврейская автономная область"]
["22","Алтайский край"]
["41","Камчатский край"]
["27","Хабаровский край"]
["23","Краснодарский край"]
["24","Красноярский край"]
["59","Пермский край"]
["25","Приморский край"]
["26","Ставропольский край"]
["75","Забайкальский край"]
["83","Ненецкий автономный округ"]
["86","Ханты-Мансийский автономный округ"]
["87","Чукотский автономный округ"]
["89","Ямало-Ненецкий автономный округ"]
["01","Республика Адыгея"]
["77","Москва"]
["78","Санкт-Петербург"]
["92","Севастополь"]
["28","Амурская область"]
["29","Архангельская область"]
["30","Астраханская область"]
["31","Белгородская область"]
["32","Брянская область"]
["74","Челябинская область"]
["38","Иркутская область"]
["37","Ивановская область"]
["39","Калининградская область"]
["40","Калужская область"]
["42","Кемеровская область"]
["43","Кировская область"]
["44","Костромская область"]
["45","Курганская область"]
["04","Республика Алтай"]
["02","Республика Башкортостан"]
["03","Республика Бурятия"]
["05","Республика Дагестан"]
["06","Республика Ингушетия"]
["07","Кабардино-Балкарская республика"]
["08","Республика Калмыкия"]
["09","Карачаево-Черкесская республика"]
["10","Республика Карелия"]
["11","Республика Коми"]
["12","Республика Марий Эл"]
["13","Республика Мордовия"]
["14","Республика Саха (Якутия)"]
["15","Республика Северная Осетия-Алания"]
["16","Республика Татарстан"]
["17","Республика Тыва"]
["18","Удмуртская республика"]
["19","Республика Хакасия"]
["95","Чеченская республика"]
["21","Чувашская республика"]
["82","Республика Крым"]